fUSD/lending_fUSD_20241111
["ID","MTS","AMOUNT","RATE_DAILY","PERIOD"]
[341933329,1731311444344,-148.23075565,0.00014798,2]
[341933340,1731311445824,-319.75757337,0.00014798,2]
[341933341,1731311445835,-6.19904081,0.00014798,2]
[341933342,1731311445847,-256.85662571,0.00014798,2]
[341933343,1731311446217,-236.94433348,0.00014798,2]
[341933344,1731311446228,-272.74798768,0.00014798,2]
[341933345,1731311446238,-500.0,0.00014798,2]
[341933346,1731311446248,-1.17948633,0.00014798,2]
[341933347,1731311446275,-503.95786606,0.00014798,2]
[341933348,1731311446285,-571.5837384,0.00014798,2]
[341933349,1731311446296,-500.0,0.00014798,2]
[341933350,1731311446307,-500.0,0.00014798,2]
[341933351,1731311446318,-1155.8,0.00014798,2]
[341933352,1731311446328,-1155.8,0.00014798,2]
[341933353,1731311446338,-500.0,0.00014798,2]
[341933354,1731311446349,-500.0,0.00014798,2]
[341933355,1731311446359,-179.87620606,0.00014798,2]
[341933356,1731311446373,-500.0,0.00014798,2]
[341933357,1731311446383,-500.0,0.00014798,2]
[341933358,1731311446393,-500.0,0.00014798,2]
[341933359,1731311446404,-500.0,0.00014798,2]
[341933360,1731311446414,-556.62844639,0.00014798,2]
[341933362,1731311838130,472.01,0.00011899,2]
[341933368,1731312464086,131308.47155895,0.0002,120]
[341933371,1731312548405,448.4,0.00011829,2]
[341933381,1731312631863,-200.0,0.000137,2]
[341933382,1731312631878,-250.0,0.00013733,2]
[341933383,1731312631886,-293.62,0.00013744,2]
[341933384,1731312631895,-929.83409128,0.00013746,2]
[341933385,1731312631922,-70.16590872,0.00013746,2]
[341933386,1731312631930,-205.0,0.00013757,2]
[341933387,1731312631939,-182.67,0.00013767,2]
[341933388,1731312631949,-448.4,0.00014093,2]
[341933389,1731312631959,-4034.11844236,0.00014212,2]
[341933390,1731312631970,-449.99,0.00014212,2]
[341933391,1731312634805,-2167.0,0.00014212,2]
[341933392,1731312634817,-4004.44234255,0.00014212,2]
[341933393,1731312634828,-901.0,0.00014212,2]
[341933394,1731312634859,-2453.57460719,0.00014212,2]
[341933448,1731312637843,-7248.8746079,0.00014212,2]
[341933449,1731312637852,-1041.09004973,0.00014502,2]
[341933450,1731312637862,-1080.91693209,0.00014502,2]
[341933451,1731312637871,-1148.43402059,0.00014502,2]
[341933452,1731312637884,-435.817,0.00014504,2]
[341933453,1731312637893,-5823.687,0.00014561,2]
[341933454,1731312637902,-150.0,0.00014561,2]
[341933455,1731312637911,-780.57,0.000146,2]
[341933456,1731312637921,-442.35,0.000146,2]
[341933457,1731312637933,-762.58,0.000146,2]
[341933458,1731312637942,-432.32,0.000146,2]
[341933459,1731312637952,-432.32,0.000146,2]
[341933460,1731312637961,-762.58,0.000146,2]
[341933461,1731312637972,-6578.944,0.00014696,2]
[341933462,1731312637981,-1000.0,0.00014696,2]
[341933463,1731312637990,-579.65786796,0.00014696,2]
[341933464,1731312637999,-163.11643595,0.00014696,2]
[341933465,1731312638008,-9196.7337,0.00014697,2]
[341933466,1731312638017,-5000.0,0.00014698,2]
[341933467,1731312638025,-163.11643595,0.00014698,2]
[341933468,1731312638034,-498.18846037,0.00014699,2]
[341933469,1731312638043,-200.0,0.00014699,2]
[341933470,1731312638052,-762.58,0.000147,2]
[341933471,1731312638061,-432.32,0.000147,2]
[341933472,1731312638070,-729.36122344,0.000147,2]
[341933473,1731312638079,-163.11643595,0.000147,2]
[341933474,1731312638088,-432.32,0.000147,2]
[341933475,1731312638097,-754.07,0.000147,2]
[341933476,1731312638106,-210.12774458,0.000147,2]
[341933477,1731312638115,-579.65786793,0.00014719,2]
[341933478,1731312638124,-579.65786793,0.00014741,2]
[341933479,1731312638133,-150.0,0.00014754,2]
[341933480,1731312638142,-150.0,0.00014756,2]
[341933481,1731312638151,-150.0,0.00014761,2]
[341933482,1731312638160,-579.65786793,0.00014764,2]
[341933483,1731312638168,-382.05541652,0.00014773,2]
[341933484,1731312638177,-150.0,0.0001478,2]
[341933485,1731312638188,-579.65786793,0.00014787,2]
[341933486,1731312638197,-2787.731949,0.00014787,2]
[341933487,1731312638206,-997.9861674,0.00014787,2]
[341933488,1731312638215,-500.0,0.00014795,2]
[341933489,1731312638224,-500.0,0.00014795,2]
[341933490,1731312638234,-500.0,0.00014795,2]
[341933491,1731312638243,-539.56238464,0.00014795,2]
[341933492,1731312638253,-592.15,0.00014795,2]
[341933493,1731312638262,-676.91,0.00014795,2]
[341933494,1731312638271,-592.15,0.00014795,2]
[341933495,1731312638281,-676.91,0.00014795,2]
[341933496,1731312638292,-592.15,0.00014795,2]
[341933497,1731312638301,-676.91,0.00014795,2]
[341933498,1731312638310,-500.0,0.00014795,2]
[341933499,1731312638320,-500.0,0.00014795,2]
[341933501,1731312638328,-500.0,0.00014795,2]
[341933503,1731312638337,-500.0,0.00014795,2]
[341933505,1731312638346,-500.0,0.00014795,2]
[341933507,1731312638355,-500.0,0.00014795,2]
[341933509,1731312638364,-572.54,0.00014795,2]
[341933511,1731312638373,-553.05,0.00014795,2]
[341933513,1731312638381,-544.34,0.00014795,2]
[341933515,1731312638390,-544.34,0.00014795,2]
[341933516,1731312638400,-544.34,0.00014795,2]
[341933517,1731312638409,-535.58,0.00014795,2]
[341933518,1731312638418,-535.58,0.00014795,2]
[341933519,1731312638427,-535.58,0.00014795,2]
[341933520,1731312638644,-500.0,0.00014795,2]
[341933521,1731312638658,-500.0,0.00014795,2]
[341933522,1731312638678,-500.0,0.00014795,2]
[341933523,1731312638688,-500.0,0.00014795,2]
[341933524,1731312638698,-500.0,0.00014795,2]
[341933525,1731312638707,-542.47,0.00014795,2]
[341933526,1731312638716,-500.0,0.00014795,2]
[341933527,1731312638725,-602.31610344,0.00014795,2]
[341933528,1731312638734,-500.0,0.00014795,2]
[341933529,1731312638743,-500.0,0.00014795,2]
[341933530,1731312638752,-500.0,0.00014795,2]
[341933531,1731312638762,-500.0,0.00014795,2]
[341933532,1731312638771,-500.0,0.00014795,2]
[341933533,1731312638780,-500.0,0.00014795,2]
[341933534,1731312638789,-500.0,0.00014795,2]
[341933535,1731312638798,-500.0,0.00014795,2]
[341933536,1731312638808,-188.9,0.00014795,2]
[341933537,1731312638817,-500.0,0.00014795,2]
[341933538,1731312638827,-303.6466026,0.00014795,2]
[341933539,1731312638836,-500.0,0.00014795,2]
[341933540,1731312638845,-500.0,0.00014795,2]
[341933541,1731312638855,-500.0,0.00014795,2]
[341933542,1731312638864,-500.0,0.00014795,2]
[341933543,1731312638877,-500.0,0.00014795,2]
[341933544,1731312638889,-500.0,0.00014795,2]
[341933545,1731312638898,-500.0,0.00014795,2]
[341933546,1731312638908,-500.0,0.00014795,2]
[341933547,1731312638919,-500.0,0.00014795,2]
[341933548,1731312638932,-500.0,0.00014795,2]
[341933549,1731312638944,-500.0,0.00014795,2]
[341933550,1731312638958,-457.53,0.00014795,2]
[341933551,1731312638968,-500.0,0.00014795,2]
[341933552,1731312638978,-500.0,0.00014795,2]
[341933553,1731312638991,-500.0,0.00014795,2]
[341933554,1731312639006,-500.0,0.00014795,2]
[341933555,1731312639017,-582.32,0.00014795,2]
[341933556,1731312639026,-500.0,0.00014795,2]
[341933557,1731312639036,-500.0,0.00014795,2]
[341933558,1731312639045,-500.0,0.00014795,2]
[341933559,1731312639054,-500.0,0.00014795,2]
[341933560,1731312639064,-500.0,0.00014795,2]
[341933561,1731312639073,-500.0,0.00014795,2]
[341933562,1731312639082,-500.0,0.00014795,2]
[341933563,1731312639091,-500.0,0.00014795,2]
[341933564,1731312639101,-500.0,0.00014795,2]
[341933565,1731312639110,-500.0,0.00014795,2]
[341933566,1731312639120,-2111.16,0.00014795,2]
[341933567,1731312639128,-2111.16,0.00014795,2]
[341933568,1731312639137,-500.0,0.00014795,2]
[341933569,1731312639147,-2111.16,0.00014795,2]
[341933570,1731312639157,-172.11,0.00014795,2]
[341933571,1731312639166,-500.0,0.00014795,2]
[341933572,1731312639175,-760597.08951147,0.00014796,2]
[341933573,1731312639185,-14074.9534569,0.00014796,2]
[341933574,1731312639195,-107651.49117487,0.00014796,2]
[341933575,1731312639204,-500.0,0.00014796,2]
[341933576,1731312639214,-500.0,0.00014796,2]
[341933577,1731312639224,-500.0,0.00014796,2]
[341933578,1731312639235,-500.0,0.00014796,2]
[341933579,1731312639246,-500.0,0.00014796,2]
[341933580,1731312639256,-252.51,0.00014796,2]
[341933581,1731312639265,-500.0,0.00014796,2]
[341933582,1731312639275,-506.43342892,0.00014796,2]
[341933583,1731312639285,-511.56783682,0.00014796,2]
[341933584,1731312639294,-501.84838336,0.00014796,2]
[341933585,1731312639304,-510.7010476,0.00014796,2]
[341933586,1731312639314,-500.0,0.00014796,2]
[341933587,1731312639324,-500.0,0.00014796,2]
[341933588,1731312639332,-468.8,0.00014796,2]
[341933589,1731312639341,-492.46287457,0.00014796,2]
[341933590,1731312639351,-199.34211831,0.00014796,2]
[341933591,1731312639360,-570.06772124,0.00014796,2]
[341933592,1731312639369,-510.50556735,0.00014796,2]
[341933593,1731312639378,-505.26156168,0.00014796,2]
[341933594,1731312639388,-503.89102678,0.00014796,2]
[341933595,1731312639397,-505.76585066,0.00014796,2]
[341933596,1731312639407,-822.98,0.00014796,2]
[341933597,1731312639416,-822.98,0.00014796,2]
[341933598,1731312639426,-822.98,0.00014796,2]
[341933599,1731312639438,-510.78210223,0.00014796,2]
[341933600,1731312639448,-502.3920438,0.00014796,2]
[341933601,1731312639457,-500.0,0.00014796,2]
[341933602,1731312639467,-500.0,0.00014796,2]
[341933603,1731312639477,-504.36750002,0.00014796,2]
[341933604,1731312639487,-502.23221225,0.00014796,2]
[341933605,1731312639497,-500.0,0.00014796,2]
[341933606,1731312639506,-500.0,0.00014796,2]
[341933607,1731312639515,-500.0,0.00014796,2]
[341933608,1731312639525,-500.0,0.00014796,2]
[341933609,1731312639534,-526.33,0.00014796,2]
[341933610,1731312639543,-501.43371339,0.00014796,2]
[341933611,1731312639552,-500.0,0.00014796,2]
[341933612,1731312639562,-500.0,0.00014796,2]
[341933613,1731312639571,-500.0,0.00014796,2]
[341933614,1731312639580,-503.72291772,0.00014796,2]
[341933616,1731312639590,-517.52141277,0.00014796,2]
[341933617,1731312639599,-505.93261058,0.00014796,2]
[341933618,1731312639609,-502.39409997,0.00014796,2]
[341933619,1731312639619,-500.0,0.00014796,2]
[341933620,1731312639628,-500.0,0.00014796,2]
[341933621,1731312639638,-500.0,0.00014796,2]
[341933622,1731312639647,-502.12071247,0.00014796,2]
[341933623,1731312639657,-500.0,0.00014796,2]
[341933624,1731312639666,-500.0,0.00014796,2]
[341933625,1731312639676,-500.0,0.00014796,2]
[341933626,1731312639687,-505.49144331,0.00014796,2]
[341933628,1731312639696,-500.0,0.00014796,2]
[341933629,1731312639706,-500.0,0.00014796,2]
[341933630,1731312639715,-500.0,0.00014796,2]
[341933631,1731312639724,-419.27462538,0.00014796,2]
[341933632,1731312639734,-500.0,0.00014796,2]
[341933633,1731312639742,-500.0,0.00014796,2]
[341933634,1731312639752,-496.5,0.00014796,2]
[341933635,1731312639761,-500.0,0.00014796,2]
[341933636,1731312639770,-500.0,0.00014796,2]
[341933637,1731312639779,-500.0,0.00014796,2]
[341933638,1731312639788,-500.0,0.00014796,2]
[341933639,1731312639797,-500.0,0.00014796,2]
[341933640,1731312639807,-502.15544814,0.00014796,2]
[341933641,1731312639816,-500.0,0.00014796,2]
[341933642,1731312639825,-499.9612296,0.00014796,2]
[341933643,1731312639836,-942.91,0.00014796,2]
[341933644,1731312639847,-942.91,0.00014796,2]
[341933645,1731312639856,-942.91,0.00014796,2]
[341933646,1731312639866,-500.0,0.00014796,2]
[341933647,1731312639879,-500.0,0.00014796,2]
[341933648,1731312639888,-383.036748,0.00014796,2]
[341933649,1731312639897,-500.0,0.00014796,2]
[341933650,1731312639907,-503.16665298,0.00014796,2]
[341933651,1731312639916,-500.0,0.00014796,2]
[341933652,1731312639926,-500.0,0.00014796,2]
[341933653,1731312639937,-500.0,0.00014796,2]
[341933654,1731312639946,-500.0,0.00014796,2]
[341933655,1731312639958,-500.0,0.00014796,2]
[341933656,1731312639967,-503.71026077,0.00014796,2]
[341933657,1731312639976,-500.0,0.00014796,2]
[341933658,1731312639985,-500.0,0.00014796,2]
[341933659,1731312639994,-504.35222884,0.00014796,2]
[341933660,1731312640003,-500.0,0.00014796,2]
[341933661,1731312640013,-500.0,0.00014796,2]
[341933662,1731312640022,-157.950213,0.00014796,2]
[341933663,1731312640031,-153.1758,0.00014796,2]
[341933664,1731312640040,-167.654768,0.00014796,2]
[341933665,1731312640049,-167.654768,0.00014796,2]
[341933666,1731312640058,-518.95229602,0.00014796,2]
[341933667,1731312640068,-500.0,0.00014796,2]
[341933668,1731312640077,-500.0,0.00014796,2]
[341933669,1731312640087,-500.0,0.00014796,2]
[341933670,1731312640095,-500.0,0.00014796,2]
[341933671,1731312640105,-500.0,0.00014796,2]
[341933672,1731312640114,-500.0,0.00014796,2]
[341933673,1731312640123,-500.0,0.00014796,2]
[341933674,1731312640133,-500.0,0.00014796,2]
[341933675,1731312640142,-643.30689439,0.00014796,2]
[341933676,1731312640153,-500.0,0.00014796,2]
[341933677,1731312640163,-500.0,0.00014796,2]
[341933678,1731312640174,-500.0,0.00014796,2]
[341933679,1731312640187,-500.0,0.00014796,2]
[341933680,1731312640198,-308.05070652,0.00014796,2]
[341933681,1731312640208,-500.0,0.00014796,2]
[341933682,1731312640217,-500.0,0.00014796,2]
[341933683,1731312640226,-500.0,0.00014796,2]
[341933684,1731312640236,-537.13954352,0.00014796,2]
[341933685,1731312640246,-500.0,0.00014796,2]
[341933686,1731312640255,-500.0,0.00014796,2]
[341933687,1731312640265,-500.0,0.00014796,2]
[341933688,1731312640275,-500.08789769,0.00014796,2]
[341933689,1731312640284,-500.0,0.00014796,2]
[341933690,1731312640294,-500.0,0.00014796,2]
[341933691,1731312640303,-500.0,0.00014796,2]
[341933692,1731312640313,-500.0,0.00014796,2]
[341933693,1731312640323,-500.0,0.00014796,2]
[341933694,1731312640333,-500.0,0.00014796,2]
[341933695,1731312640342,-500.0,0.00014796,2]
[341933696,1731312640352,-395.05288482,0.00014796,2]
[341933697,1731312640361,-500.0,0.00014796,2]
[341933698,1731312640372,-500.0,0.00014796,2]
[341933699,1731312640381,-500.0,0.00014796,2]
[341933700,1731312640391,-500.0,0.00014796,2]
[341933701,1731312640403,-500.0,0.00014796,2]
[341933702,1731312640412,-500.0,0.00014796,2]
[341933703,1731312640421,-500.0,0.00014796,2]
[341933704,1731312640431,-500.0,0.00014796,2]
[341933705,1731312640440,-500.0,0.00014796,2]
[341933706,1731312640449,-500.0,0.00014796,2]
[341933707,1731312640459,-500.0,0.00014796,2]
[341933708,1731312640468,-500.0,0.00014796,2]
[341933709,1731312640479,-505.6188556,0.00014796,2]
[341933710,1731312640488,-505.96117576,0.00014796,2]
[341933711,1731312640498,-500.0,0.00014796,2]
[341933712,1731312640507,-178.75,0.00014796,2]
[341933713,1731312640517,-500.0,0.00014796,2]
[341933714,1731312640527,-643.07022576,0.00014796,2]
[341933715,1731312640536,-500.0,0.00014796,2]
[341933716,1731312640546,-500.0,0.00014796,2]
[341933717,1731312640556,-500.0,0.00014796,2]
[341933718,1731312640565,-500.0,0.00014796,2]
[341933719,1731312640574,-517.39885094,0.00014796,2]
[341933720,1731312640584,-625.71699018,0.00014796,2]
[341933721,1731312640593,-506.29841713,0.00014796,2]
[341933722,1731312640602,-575.29739299,0.00014796,2]
[341933723,1731312640611,-500.0,0.00014796,2]
[341933724,1731312640620,-500.0,0.00014796,2]
[341933725,1731312640630,-500.0,0.00014796,2]
[341933726,1731312640639,-500.0,0.00014796,2]
[341933727,1731312640649,-500.0,0.00014796,2]
[341933728,1731312640658,-500.0,0.00014796,2]
[341933729,1731312640667,-520.9121522,0.00014796,2]
[341933730,1731312640676,-513.13493062,0.00014796,2]
[341933731,1731312640688,-500.0,0.00014796,2]
[341933732,1731312640697,-500.0,0.00014796,2]
[341933733,1731312640707,-500.0,0.00014796,2]
[341933734,1731312640716,-282.72379575,0.00014796,2]
[341933735,1731312640725,-500.0,0.00014796,2]
[341933736,1731312640734,-178.43,0.00014796,2]
[341933737,1731312640743,-166.99448453,0.00014796,2]
[341933738,1731312640752,-500.0,0.00014796,2]
[341933739,1731312640761,-312.93399868,0.00014796,2]
[341933740,1731312640771,-500.0,0.00014796,2]
[341933741,1731312640780,-500.0,0.00014796,2]
[341933742,1731312640789,-448.3539869,0.00014796,2]
[341933743,1731312640798,-535.46108489,0.00014796,2]
[341933744,1731312640808,-500.0,0.00014796,2]
[341933745,1731312640817,-264.75252206,0.00014796,2]
[341933746,1731312640827,-500.0,0.00014796,2]
[341933747,1731312640836,-500.0,0.00014796,2]
[341933748,1731312640846,-500.0,0.00014796,2]
[341933749,1731312640855,-536.97,0.00014796,2]
[341933750,1731312640864,-168.10957239,0.00014796,2]
[341933751,1731312640875,-182.05659452,0.00014796,2]
[341933752,1731312640888,-500.0,0.00014796,2]
[341933753,1731312640897,-501.60543681,0.00014796,2]
[341933754,1731312640906,-151.0,0.00014796,2]
[341933755,1731312640915,-500.0,0.00014796,2]
[341933756,1731312640926,-500.0,0.00014796,2]
[341933757,1731312640937,-500.0,0.00014796,2]
[341933758,1731312640947,-500.0,0.00014796,2]
[341933759,1731312640956,-214.74584385,0.00014796,2]
[341933760,1731312640966,-500.0,0.00014796,2]
[341933761,1731312640975,-619.46,0.00014796,2]
[341933762,1731312640984,-500.0,0.00014796,2]
[341933763,1731312640994,-302.28,0.00014796,2]
[341933764,1731312641003,-500.0,0.00014796,2]
[341933765,1731312641012,-500.0,0.00014796,2]
[341933766,1731312641022,-280.20568507,0.00014796,2]
[341933767,1731312641031,-151.0,0.00014796,2]
[341933768,1731312641040,-647.51427459,0.00014796,2]
[341933769,1731312641049,-151.0,0.00014796,2]
[341933770,1731312641058,-500.0,0.00014796,2]
[341933771,1731312641067,-500.0,0.00014796,2]
[341933772,1731312641076,-500.0,0.00014796,2]
[341933773,1731312641085,-500.0,0.00014796,2]
[341933774,1731312641094,-500.0,0.00014796,2]
[341933775,1731312641103,-500.0,0.00014796,2]
[341933776,1731312641112,-500.0,0.00014796,2]
[341933777,1731312641121,-500.0,0.00014796,2]
[341933778,1731312641130,-500.0,0.00014796,2]
[341933779,1731312641139,-500.0,0.00014796,2]
[341933780,1731312641148,-500.0,0.00014796,2]
[341933781,1731312641158,-500.0,0.00014796,2]
[341933782,1731312641336,-500.0,0.00014796,2]
[341933783,1731312641346,-500.0,0.00014796,2]
[341933784,1731312641355,-500.0,0.00014796,2]
[341933785,1731312641364,-500.0,0.00014796,2]
[341933786,1731312641373,-534.62,0.00014796,2]
[341933787,1731312641382,-500.0,0.00014796,2]
[341933788,1731312641391,-534.62,0.00014796,2]
[341933789,1731312641400,-534.62,0.00014796,2]
[341933790,1731312641409,-500.0,0.00014796,2]
[341933791,1731312641418,-500.0,0.00014796,2]
[341933792,1731312641427,-500.0,0.00014796,2]
[341933793,1731312641437,-500.0,0.00014796,2]
[341933794,1731312641447,-500.0,0.00014796,2]
[341933795,1731312641456,-500.0,0.00014796,2]
[341933796,1731312641465,-500.0,0.00014796,2]
[341933797,1731312641474,-500.0,0.00014796,2]
[341933798,1731312641484,-506.84,0.00014796,2]
[341933799,1731312641493,-500.0,0.00014796,2]
[341933800,1731312641502,-394.12,0.00014796,2]
[341933801,1731312641511,-836.169632,0.00014796,2]
[341933802,1731312641520,-500.0,0.00014796,2]
[341933803,1731312641529,-500.0,0.00014796,2]
[341933804,1731312641538,-500.0,0.00014796,2]
[341933805,1731312641547,-3641.8,0.00014796,2]
[341933806,1731312641556,-3641.8,0.00014796,2]
[341933807,1731312641565,-3641.8,0.00014796,2]
[341933808,1731312641574,-275.880574,0.00014796,2]
[341933809,1731312641584,-500.0,0.00014796,2]
[341933810,1731312641594,-275.880574,0.00014796,2]
[341933811,1731312641603,-554.75257226,0.00014796,2]
[341933812,1731312641612,-1109.98,0.00014796,2]
[341933813,1731312641621,-1109.98,0.00014796,2]
[341933814,1731312641630,-1109.98,0.00014796,2]
[341933815,1731312641639,-151.0,0.00014796,2]
[341933816,1731312641648,-500.0,0.00014796,2]
[341933817,1731312641657,-500.0,0.00014796,2]
[341933818,1731312641666,-183.47029294,0.00014796,2]
[341933819,1731312641675,-500.0,0.00014796,2]
[341933820,1731312641687,-628.09,0.00014796,2]
[341933821,1731312641696,-500.0,0.00014796,2]
[341933822,1731312641706,-318.34,0.00014796,2]
[341933823,1731312641715,-500.0,0.00014796,2]
[341933824,1731312641724,-157.33723,0.00014796,2]
[341933825,1731312641733,-578.37,0.00014796,2]
[341933826,1731312641742,-1187.45,0.00014796,2]
[341933827,1731312641751,-1187.45,0.00014796,2]
[341933828,1731312641761,-1187.45,0.00014796,2]
[341933829,1731312641770,-2605.834856,0.00014796,2]
[341933830,1731312641779,-262.312586,0.00014796,2]
[341933831,1731312641788,-2571.47,0.00014796,2]
[341933832,1731312641798,-2571.47,0.00014796,2]
[341933833,1731312641807,-2571.47,0.00014796,2]
[341933834,1731312641815,-500.0,0.00014796,2]
[341933835,1731312641825,-500.0,0.00014796,2]
[341933836,1731312641834,-300.242434,0.00014796,2]
[341933837,1731312641843,-500.0,0.00014796,2]
[341933838,1731312641852,-262.312586,0.00014796,2]
[341933839,1731312641861,-2605.834856,0.00014796,2]
[341933840,1731312641871,-500.0,0.00014796,2]
[341933841,1731312641883,-500.0,0.00014796,2]
[341933842,1731312641892,-300.242434,0.00014796,2]
[341933843,1731312641901,-151.0,0.00014796,2]
[341933844,1731312641910,-500.0,0.00014796,2]
[341933845,1731312641919,-151.0,0.00014796,2]
[341933846,1731312641928,-151.0,0.00014796,2]
[341933847,1731312641939,-503.34885599,0.00014796,2]
[341933848,1731312641948,-500.0,0.00014796,2]
[341933849,1731312641959,-500.0,0.00014796,2]
[341933850,1731312641968,-233.4199705,0.00014796,2]
[341933851,1731312641977,-500.0,0.00014796,2]
[341933852,1731312641987,-500.0,0.00014796,2]
[341933853,1731312641996,-500.0,0.00014796,2]
[341933854,1731312642004,-500.0,0.00014796,2]
[341933855,1731312642013,-500.0,0.00014796,2]
[341933856,1731312642022,-500.0,0.00014796,2]
[341933857,1731312642031,-500.0,0.00014796,2]
[341933858,1731312642040,-500.0,0.00014796,2]
[341933859,1731312642049,-500.0,0.00014796,2]
[341933860,1731312642059,-500.0,0.00014796,2]
[341933861,1731312642068,-500.0,0.00014796,2]
[341933862,1731312642078,-531.43256354,0.00014796,2]
[341933863,1731312642087,-592.15,0.00014796,2]
[341933864,1731312642097,-151.0,0.00014796,2]
[341933865,1731312642106,-676.91,0.00014796,2]
[341933866,1731312642115,-268.124681,0.00014796,2]
[341933867,1731312642124,-500.0,0.00014796,2]
[341933868,1731312642133,-365.86433133,0.00014796,2]
[341933869,1731312642142,-500.0,0.00014796,2]
[341933870,1731312642151,-504.25785631,0.00014796,2]
[341933871,1731312642160,-293.45,0.00014796,2]
[341933872,1731312642169,-500.0,0.00014796,2]
[341933873,1731312642178,-363.59558473,0.00014796,2]
[341933874,1731312642189,-500.0,0.00014796,2]
[341933875,1731312642198,-500.0,0.00014796,2]
[341933876,1731312642207,-500.0,0.00014796,2]
[341933877,1731312642215,-500.0,0.00014796,2]
[341933878,1731312642224,-500.0,0.00014796,2]
[341933879,1731312642233,-544.34,0.00014796,2]
[341933880,1731312642242,-500.0,0.00014796,2]
[341933881,1731312642251,-500.0,0.00014796,2]
[341933882,1731312642260,-500.0,0.00014796,2]
[341933883,1731312642269,-535.58,0.00014796,2]
[341933884,1731312642278,-500.0,0.00014796,2]
[341933885,1731312642287,-500.0,0.00014796,2]
[341933886,1731312642296,-500.0,0.00014796,2]
[341933887,1731312642305,-151.0,0.00014796,2]
[341933888,1731312642314,-500.0,0.00014796,2]
[341933889,1731312642323,-151.0,0.00014796,2]
[341933890,1731312642333,-500.0,0.00014796,2]
[341933891,1731312642342,-500.0,0.00014796,2]
[341933892,1731312642351,-384.43986313,0.00014796,2]
[341933893,1731312642360,-425.96,0.00014796,2]
[341933894,1731312642369,-151.0,0.00014796,2]
[341933895,1731312642378,-500.0,0.00014796,2]
[341933896,1731312642387,-500.0,0.00014796,2]
[341933897,1731312642397,-500.0,0.00014796,2]
[341933898,1731312642406,-489.65,0.00014796,2]
[341933899,1731312642415,-151.0,0.00014796,2]
[341933900,1731312642424,-500.0,0.00014796,2]
[341933901,1731312642435,-500.0,0.00014796,2]
[341933902,1731312642444,-500.0,0.00014796,2]
[341933903,1731312642453,-500.0,0.00014796,2]
[341933904,1731312642462,-500.0,0.00014796,2]
[341933905,1731312642472,-500.0,0.00014796,2]
[341933906,1731312642481,-500.0,0.00014796,2]
[341933907,1731312642491,-500.0,0.00014796,2]
[341933908,1731312642500,-536.63423238,0.00014796,2]
[341933909,1731312642510,-500.0,0.00014796,2]
[341933910,1731312642519,-500.0,0.00014796,2]
[341933911,1731312642528,-516.60377806,0.00014796,2]
[341933912,1731312642537,-263.74617415,0.00014796,2]
[341933913,1731312642546,-500.0,0.00014796,2]
[341933914,1731312642555,-421.68325217,0.00014796,2]
[341933915,1731312642564,-500.0,0.00014796,2]
[341933916,1731312642573,-500.0,0.00014796,2]
[341933918,1731312642582,-500.0,0.00014796,2]
[341933920,1731312642591,-516.62891556,0.00014796,2]